Workbook

Sheet Sheet2
A1: 附件：
A2: 2022年蓬江区社区专职工作者公开招聘拟聘用人员名单公示（第一批）
A3: 序号 | B3: 职位代码 | C3: 职位名称 | D3: 姓名 | E3: 准考证号 | F3: 笔试成绩 | G3: 面试成绩 | H3: 综合成绩 | I3: 体检 | J3: 考察 | K3: 聘用情况
A4: 1 | B4: 01 | C4: 棠下镇棠下社区专职工作者 | D4: 叶敏清 | E4: 201020101225 | F4: 83.92 | G4: 87.4 | H4: 86.008 | I4: 合格 | J4: 合格 | K4: 拟聘用
A5: 2 | B5: 01 | C5: 棠下镇棠下社区专职工作者 | D5: 区建华 | E5: 201020101221 | F5: 78.88 | G5: 84.5 | H5: 82.252 | I5: 合格 | J5: 合格 | K5: 拟聘用
A6: 3 | B6: 01 | C6: 棠下镇棠下社区专职工作者 | D6: 张志豪 | E6: 201020100809 | F6: 80.32 | G6: 82.5 | H6: 81.628 | I6: 合格 | J6: 合格 | K6: 拟聘用
A7: 4 | B7: 01 | C7: 棠下镇棠下社区专职工作者 | D7: 温燕婷 | E7: 201020105213 | F7: 82.3 | G7: 78.6 | H7: 80.08 | I7: 合格 | J7: 合格 | K7: 拟聘用
A8: 5 | B8: 01 | C8: 棠下镇棠下社区专职工作者 | D8: 江泽强 | E8: 201020100223 | F8: 92.95 | G8: 70 | H8: 79.18 | I8: 合格 | J8: 合格 | K8: 拟聘用
A9: 6 | B9: 01 | C9: 棠下镇棠下社区专职工作者 | D9: 黄家盈 | E9: 201020102701 | F9: 74.71 | G9: 81.9 | H9: 79.024 | I9: 合格 | J9: 合格 | K9: 拟聘用
A10: 7 | B10: 01 | C10: 棠下镇棠下社区专职工作者 | D10: 胡颖欣 | E10: 201020104330 | F10: 77.26 | G10: 79.5 | H10: 78.604 | I10: 合格 | J10: 合格 | K10: 拟聘用
A11: 8 | B11: 01 | C11: 棠下镇棠下社区专职工作者 | D11: 梁惠琪 | E11: 201020101015 | F11: 79.78 | G11: 77.7 | H11: 78.532 | I11: 合格 | J11: 合格 | K11: 拟聘用
A12: 9 | B12: 01 | C12: 棠下镇棠下社区专职工作者 | D12: 梁力 | E12: 201020104508 | F12: 80.64 | G12: 77.1 | H12: 78.516 | I12: 合格 | J12: 合格 | K12: 拟聘用
A13: 10 | B13: 01 | C13: 棠下镇棠下社区专职工作者 | D13: 黄家礼 | E13: 201020101921 | F13: 79.75 | G13: 74.5 | H13: 76.6 | I13: 合格 | J13: 合格 | K13: 拟聘用
A14: 11 | B14: 01 | C14: 棠下镇棠下社区专职工作者 | D14: 麦青 | E14: 201020104301 | F14: 75.25 | G14: 77.5 | H14: 76.6 | I14: 合格 | J14: 合格 | K14: 拟聘用
A15: 12 | B15: 01 | C15: 棠下镇棠下社区专职工作者 | D15: 袁佩佩 | E15: 201020100217 | F15: 79.78 | G15: 74 | H15: 76.312 | I15: 合格 | J15: 合格 | K15: 拟聘用
A16: 13 | B16: 01 | C16: 棠下镇棠下社区专职工作者 | D16: 廖小曼 | E16: 201020101416 | F16: 76.94 | G16: 72.5 | H16: 74.276 | I16: 合格 | J16: 合格 | K16: 拟聘用
A17: 14 | B17: 01 | C17: 棠下镇棠下社区专职工作者 | D17: 吴少利 | E17: 201020101620 | F17: 75.25 | G17: 73.5 | H17: 74.2 | I17: 合格 | J17: 合格 | K17: 拟聘用
A18: 15 | B18: 01 | C18: 棠下镇棠下社区专职工作者 | D18: 黄观浩 | E18: 201020105007 | F18: 82.52 | G18: 65.9 | H18: 72.548 | I18: 合格 | J18: 合格 | K18: 拟聘用
A19: 16 | B19: 02 | C19: 棠下镇新昌社区专职工作者 | D19: 黄晓珊 | E19: 201020101711 | F19: 89.89 | G19: 72.5 | H19: 79.456 | I19: 合格 | J19: 合格 | K19: 拟聘用
A20: 17 | B20: 02 | C20: 棠下镇新昌社区专职工作者 | D20: 梁菲红 | E20: 201020104821 | F20: 64.02 | G20: 76.7 | H20: 71.628 | I20: 合格 | J20: 合格 | K20: 拟聘用
A21: 18 | B21: 03 | C21: 棠下镇滨江社区专职工作者 | D21: 余颖琪 | E21: 201020101702 | F21: 89.82 | G21: 82.6 | H21: 85.488 | I21: 合格 | J21: 合格 | K21: 拟聘用
A22: 19 | B22: 03 | C22: 棠下镇滨江社区专职工作者 | D22: 崔岩 | E22: 201020105227 | F22: 89.03 | G22: 77.1 | H22: 81.872 | I22: 合格 | J22: 合格 | K22: 拟聘用
A23: 20 | B23: 03 | C23: 棠下镇滨江社区专职工作者 | D23: 张娣 | E23: 201020103710 | F23: 93.24 | G23: 72.8 | H23: 80.976 | I23: 合格 | J23: 合格 | K23: 拟聘用
A24: 21 | B24: 03 | C24: 棠下镇滨江社区专职工作者 | D24: 梁玉妍 | E24: 201020100412 | F24: 81.47 | G24: 77.5 | H24: 79.088 | I24: 合格 | J24: 合格 | K24: 拟聘用
A25: 22 | B25: 03 | C25: 棠下镇滨江社区专职工作者 | D25: 宋锦萍 | E25: 201020103602 | F25: 78.12 | G25: 79.6 | H25: 79.008 | I25: 合格 | J25: 合格 | K25: 拟聘用
A26: 23 | B26: 03 | C26: 棠下镇滨江社区专职工作者 | D26: 周爱敏 | E26: 201020101201 | F26: 72.41 | G26: 83.4 | H26: 79.004 | I26: 合格 | J26: 合格 | K26: 拟聘用
A27: 24 | B27: 03 | C27: 棠下镇滨江社区专职工作者 | D27: 陈耀强 | E27: 201020102726 | F27: 80.61 | G27: 77.9 | H27: 78.984 | I27: 合格 | J27: 合格 | K27: 拟聘用
A28: 25 | B28: 03 | C28: 棠下镇滨江社区专职工作者 | D28: 文燕华 | E28: 201020103317 | F28: 88.2 | G28: 71.1 | H28: 77.94 | I28: 合格 | J28: 合格 | K28: 拟聘用
A29: 26 | B29: 03 | C29: 棠下镇滨江社区专职工作者 | D29: 谭艳雯 | E29: 201020105116 | F29: 84.24 | G29: 73.2 | H29: 77.616 | I29: 合格 | J29: 合格 | K29: 拟聘用
A30: 27 | B30: 03 | C30: 棠下镇滨江社区专职工作者 | D30: 李春萍 | E30: 201020103826 | F30: 81.47 | G30: 73.6 | H30: 76.748 | I30: 合格 | J30: 合格 | K30: 拟聘用
A31: 28 | B31: 03 | C31: 棠下镇滨江社区专职工作者 | D31: 陈孟园 | E31: 201020100121 | F31: 77.8 | G31: 75.9 | H31: 76.66 | I31: 合格 | J31: 合格 | K31: 拟聘用
A32: 29 | B32: 03 | C32: 棠下镇滨江社区专职工作者 | D32: 李小花 | E32: 201020100705 | F32: 75.28 | G32: 77.3 | H32: 76.492 | I32: 合格 | J32: 合格 | K32: 拟聘用
A33: 30 | B33: 03 | C33: 棠下镇滨江社区专职工作者 | D33: 郭启杰 | E33: 201020101126 | F33: 87.34 | G33: 69 | H33: 76.336 | I33: 合格 | J33: 合格 | K33: 拟聘用
A34: 31 | B34: 03 | C34: 棠下镇滨江社区专职工作者 | D34: 韩沛怡 | E34: 201020102110 | F34: 73.56 | G34: 76.3 | H34: 75.204 | I34: 合格 | J34: 合格 | K34: 拟聘用
A35: 32 | B35: 04 | C35: 荷塘社区专职工作者 | D35: 陈佩贤 | E35: 201020101924 | F35: 83.16 | G35: 79.7 | H35: =F35*40%+G35*60% -> 81.084 | I35: 合格 | J35: 合格 | K35: 拟聘用
A36: 33 | B36: 04 | C36: 荷塘社区专职工作者 | D36: 李庆添 | E36: 201020100426 | F36: 78.63 | G36: 82.5 | H36: 80.952 | I36: 合格 | J36: 合格 | K36: 拟聘用
A37: 34 | B37: 04 | C37: 荷塘社区专职工作者 | D37: 胡丽颜 | E37: 201020102303 | F37: 73.59 | G37: 81.4 | H37: 78.276 | I37: 合格 | J37: 合格 | K37: 拟聘用
A38: 35 | B38: 04 | C38: 荷塘社区专职工作者 | D38: 容倩琼 | E38: 201020102125 | F38: 80.32 | G38: 76.6 | H38: 78.088 | I38: 合格 | J38: 合格 | K38: 拟聘用
A39: 36 | B39: 04 | C39: 荷塘社区专职工作者 | D39: 黎凤敏 | E39: 201020102606 | F39: 77.29 | G39: 78.3 | H39: 77.896 | I39: 合格 | J39: 合格 | K39: 拟聘用
A40: 37 | B40: 04 | C40: 荷塘社区专职工作者 | D40: 黎聆枫 | E40: 201020101010 | F40: 74.1 | G40: 79.8 | H40: 77.52 | I40: 合格 | J40: 合格 | K40: 拟聘用
A41: 38 | B41: 04 | C41: 荷塘社区专职工作者 | D41: 李彩卿 | E41: 201020101103 | F41: 71.33 | G41: 80.1 | H41: 76.592 | I41: 合格 | J41: 合格 | K41: 拟聘用
A42: 39 | B42: 04 | C42: 荷塘社区专职工作者 | D42: 黎宝莹 | E42: 201020100901 | F42: 77.23 | G42: 74.5 | H42: 75.592 | I42: 合格 | J42: 合格 | K42: 拟聘用
A43: 40 | B43: 04 | C43: 荷塘社区专职工作者 | D43: 黄晓媚 | E43: 201020100204 | F43: 71.9 | G43: 73.9 | H43: 73.1 | I43: 合格 | J43: 合格 | K43: 拟聘用
A44: 41 | B44: 04 | C44: 荷塘社区专职工作者 | D44: 容登仑 | E44: 201020103502 | F44: 73.27 | G44: 71.8 | H44: 72.388 | I44: 合格 | J44: 合格 | K44: 拟聘用
A45: 42 | B45: 04 | C45: 荷塘社区专职工作者 | D45: 黎子宇 | E45: 201020104022 | F45: 80.32 | G45: 60.6 | H45: 68.488 | I45: 合格 | J45: 合格 | K45: 拟聘用
A46: 43 | B46: 05 | C46: 杜阮中心社区专职工作者 | D46: 黄千平 | E46: 201020100615 | F46: 82.3 | G46: 81.6 | H46: 81.88 | I46: 合格 | J46: 合格 | K46: 拟聘用
A47: 44 | B47: 05 | C47: 杜阮中心社区专职工作者 | D47: 周梓豪 | E47: 201020102904 | F47: 83.13 | G47: 74.8 | H47: 78.132 | I47: 合格 | J47: 合格 | K47: 拟聘用
A48: 45 | B48: 05 | C48: 杜阮中心社区专职工作者 | D48: 陈美玲 | E48: 201020100214 | F48: 80.64 | G48: 69.3 | H48: 73.836 | I48: 合格 | J48: 合格 | K48: 拟聘用
A49: 46 | B49: 05 | C49: 杜阮中心社区专职工作者 | D49: 简美娴 | E49: 201020103218 | F49: 75.28 | G49: 65.1 | H49: 69.172 | I49: 合格 | J49: 合格 | K49: 拟聘用
A50: 47 | B50: 05 | C50: 杜阮中心社区专职工作者 | D50: 黄镇强 | E50: 201020103012 | F50: 78.63 | G50: 61.4 | H50: 68.292 | I50: 合格 | J50: 合格 | K50: 拟聘用
A51: 48 | B51: 05 | C51: 杜阮中心社区专职工作者 | D51: 黄颖林 | E51: 201020104605 | F51: 67.98 | G51: 68.3 | H51: 68.172 | I51: 合格 | J51: 合格 | K51: 拟聘用
A52: 49 | B52: 06 | C52: 杜阮新河社区专职工作者 | D52: 周景添 | E52: 201020102930 | F52: 81.47 | G52: 65.5 | H52: 71.888 | I52: 合格 | J52: 合格 | K52: 拟聘用
A53: 50 | B53: 06 | C53: 杜阮新河社区专职工作者 | D53: 曹忠冠 | E53: 201020100922 | F53: 69.92 | G53: 71.6 | H53: 70.928 | I53: 合格 | J53: 合格 | K53: 拟聘用
A54: 51 | B54: 07 | C54: 杜阮金朗社区专职工作者 | D54: 尹嘉俊 | E54: 201020100322 | F54: 92.41 | G54: 77.9 | H54: 83.704 | I54: 合格 | J54: 合格 | K54: 拟聘用
A55: 52 | B55: 07 | C55: 杜阮金朗社区专职工作者 | D55: 张健桢 | E55: 201020101420 | F55: 83.13 | G55: 82.4 | H55: 82.692 | I55: 合格 | J55: 合格 | K55: 拟聘用
A56: 53 | B56: 07 | C56: 杜阮金朗社区专职工作者 | D56: 陈毅俊 | E56: 201020102514 | F56: 90.72 | G56: 74.9 | H56: 81.228 | I56: 合格 | J56: 合格 | K56: 拟聘用
A57: 54 | B57: 07 | C57: 杜阮金朗社区专职工作者 | D57: 李俊杰 | E57: 201020103018 | F57: 90.4 | G57: 72.8 | H57: 79.84 | I57: 合格 | J57: 合格 | K57: 拟聘用
A58: 55 | B58: 07 | C58: 杜阮金朗社区专职工作者 | D58: 李杏敏 | E58: 201020103907 | F58: 78.31 | G58: 78.6 | H58: 78.484 | I58: 合格 | J58: 合格 | K58: 拟聘用
A59: 56 | B59: 07 | C59: 杜阮金朗社区专职工作者 | D59: 李宝瑜 | E59: 201020104523 | F59: 73.56 | G59: 81.7 | H59: 78.444 | I59: 合格 | J59: 合格 | K59: 拟聘用
A60: 57 | B60: 07 | C60: 杜阮金朗社区专职工作者 | D60: 王志杰 | E60: 201020104201 | F60: 81.12 | G60: 75.2 | H60: 77.568 | I60: 合格 | J60: 合格 | K60: 拟聘用
A61: 58 | B61: 07 | C61: 杜阮金朗社区专职工作者 | D61: 崔荣业 | E61: 201020102026 | F61: 84.24 | G61: 72.6 | H61: 77.256 | I61: 合格 | J61: 合格 | K61: 拟聘用
A62: 59 | B62: 07 | C62: 杜阮金朗社区专职工作者 | D62: 陈志权 | E62: 201020101717 | F62: 80.32 | G62: 74.2 | H62: 76.648 | I62: 合格 | J62: 合格 | K62: 拟聘用
A63: 60 | B63: 07 | C63: 杜阮金朗社区专职工作者 | D63: 黄颖瑜 | E63: 201020104204 | F63: 67.05 | G63: 81.9 | H63: 75.96 | I63: 合格 | J63: 合格 | K63: 拟聘用
A64: 61 | B64: 07 | C64: 杜阮金朗社区专职工作者 | D64: 陈汉文 | E64: 201020102817 | F64: 80 | G64: 69.6 | H64: 73.76 | I64: 合格 | J64: 合格 | K64: 拟聘用
A65: 62 | B65: 07 | C65: 杜阮金朗社区专职工作者 | D65: 黄静珊 | E65: 201020102912 | F65: 66 | G65: 75 | H65: 71.4 | I65: 合格 | J65: 合格 | K65: 拟聘用
A66: 63 | B66: 08 | C66: 杜阮瑶村社区专职工作者 | D66: 简丽琴 | E66: 201020100428 | F66: 79.78 | G66: 78.8 | H66: 79.192 | I66: 合格 | J66: 合格 | K66: 拟聘用
A67: 64 | B67: 08 | C67: 杜阮瑶村社区专职工作者 | D67: 区曼娆 | E67: 201020100627 | F67: 82.84 | G67: 68.6 | H67: 74.296 | I67: 合格 | J67: 合格 | K67: 拟聘用
A68: 65 | B68: 08 | C68: 杜阮瑶村社区专职工作者 | D68: 区钰瑜 | E68: 201020102603 | F68: 79.78 | G68: 68.7 | H68: 73.132 | I68: 合格 | J68: 合格 | K68: 拟聘用
A69: 66 | B69: 09 | C69: 环市街社区专职工作者A片区 | D69: 黎昕彤 | E69: 201020102324 | F69: 88.2 | G69: 82.7 | H69: 84.9 | I69: 合格 | J69: 合格 | K69: 拟聘用
A70: 67 | B70: 09 | C70: 环市街社区专职工作者A片区 | D70: 梁敏玲 | E70: 201020105304 | F70: 82.3 | G70: 83.2 | H70: 82.84 | I70: 合格 | J70: 合格 | K70: 拟聘用
A71: 68 | B71: 09 | C71: 环市街社区专职工作者A片区 | D71: 马倩君 | E71: 201020100722 | F71: 83.7 | G71: 81.3 | H71: 82.26 | I71: 合格 | J71: 合格 | K71: 拟聘用
A72: 69 | B72: 09 | C72: 环市街社区专职工作者A片区 | D72: 吴宇欣 | E72: 201020105218 | F72: 89.89 | G72: 76.6 | H72: 81.916 | I72: 合格 | J72: 合格 | K72: 拟聘用
A73: 70 | B73: 09 | C73: 环市街社区专职工作者A片区 | D73: 黄景瀚 | E73: 201020100620 | F73: 89.89 | G73: 75.3 | H73: 81.136 | I73: 合格 | J73: 合格 | K73: 拟聘用
A74: 71 | B74: 09 | C74: 环市街社区专职工作者A片区 | D74: 黎铭鹍 | E74: 201020101516 | F74: 88.2 | G74: 76.1 | H74: 80.94 | I74: 合格 | J74: 合格 | K74: 拟聘用
A75: 72 | B75: 09 | C75: 环市街社区专职工作者A片区 | D75: 潘晓萍 | E75: 201020103504 | F75: 89.03 | G75: 75.5 | H75: 80.912 | I75: 合格 | J75: 合格 | K75: 拟聘用
A76: 73 | B76: 09 | C76: 环市街社区专职工作者A片区 | D76: 林诗敏 | E76: 201020104919 | F76: 89.89 | G76: 74.9 | H76: 80.896 | I76: 合格 | J76: 合格 | K76: 拟聘用
A77: 74 | B77: 09 | C77: 环市街社区专职工作者A片区 | D77: 甄志威 | E77: 201020103518 | F77: 85.68 | G77: 77.3 | H77: 80.652 | I77: 合格 | J77: 合格 | K77: 拟聘用
A78: 75 | B78: 09 | C78: 环市街社区专职工作者A片区 | D78: 林海珊 | E78: 201020102915 | F78: 82.01 | G78: 77.2 | H78: 79.124 | I78: 合格 | J78: 合格 | K78: 拟聘用
A79: 76 | B79: 09 | C79: 环市街社区专职工作者A片区 | D79: 谭健芳 | E79: 201020102124 | F79: 81.69 | G79: 75.4 | H79: 77.916 | I79: 合格 | J79: 合格 | K79: 拟聘用
A80: 77 | B80: 09 | C80: 环市街社区专职工作者A片区 | D80: 陈小蝶 | E80: 201020103312 | F80: 82.3 | G80: 72.9 | H80: 76.66 | I80: 合格 | J80: 合格 | K80: 拟聘用
A81: 78 | B81: 09 | C81: 环市街社区专职工作者A片区 | D81: 吕美怡 | E81: 201020102328 | F81: 76.94 | G81: 76 | H81: 76.376 | I81: 合格 | J81: 合格 | K81: 拟聘用
A82: 79 | B82: 09 | C82: 环市街社区专职工作者A片区 | D82: 谢颖杰 | E82: 201020102130 | F82: 86.51 | G82: 69.1 | H82: 76.064 | I82: 合格 | J82: 合格 | K82: 拟聘用
A83: 80 | B83: 09 | C83: 环市街社区专职工作者A片区 | D83: 林智清 | E83: 201020100530 | F83: 84.53 | G83: 70.1 | H83: 75.872 | I83: 合格 | J83: 合格 | K83: 拟聘用
A84: 81 | B84: 09 | C84: 环市街社区专职工作者A片区 | D84: 张惠燕 | E84: 201020100805 | F84: 74.13 | G84: 76.7 | H84: 75.672 | I84: 合格 | J84: 合格 | K84: 拟聘用
A85: 82 | B85: 09 | C85: 环市街社区专职工作者A片区 | D85: 谭婉滢 | E85: 201020104630 | F85: 80.64 | G85: 72.2 | H85: 75.576 | I85: 合格 | J85: 合格 | K85: 拟聘用
A86: 83 | B86: 09 | C86: 环市街社区专职工作者A片区 | D86: 邓嘉怡 | E86: 201020102401 | F86: 80.54 | G86: 71.2 | H86: 74.936 | I86: 合格 | J86: 合格 | K86: 拟聘用
A87: 84 | B87: 09 | C87: 环市街社区专职工作者A片区 | D87: 张雯 | E87: 201020101604 | F87: 77.8 | G87: 72.8 | H87: 74.8 | I87: 合格 | J87: 合格 | K87: 拟聘用
A88: 85 | B88: 09 | C88: 环市街社区专职工作者A片区 | D88: 陈珏君 | E88: 201020102226 | F88: 75.54 | G88: 74.3 | H88: 74.796 | I88: 合格 | J88: 合格 | K88: 拟聘用
A89: 86 | B89: 09 | C89: 环市街社区专职工作者A片区 | D89: 赵昊天 | E89: 201020100811 | F89: 85.39 | G89: 67.7 | H89: 74.776 | I89: 合格 | J89: 合格 | K89: 拟聘用
A90: 87 | B90: 09 | C90: 环市街社区专职工作者A片区 | D90: 彭思敏 | E90: 201020104102 | F90: 78.09 | G90: 72.5 | H90: 74.736 | I90: 合格 | J90: 合格 | K90: 拟聘用
A91: 88 | B91: 09 | C91: 环市街社区专职工作者A片区 | D91: 周健兴 | E91: 201020101130 | F91: 80.32 | G91: 69.6 | H91: 73.888 | I91: 合格 | J91: 合格 | K91: 拟聘用
A92: 89 | B92: 09 | C92: 环市街社区专职工作者A片区 | D92: 梁泳欣 | E92: 201020104217 | F92: 65.43 | G92: 78.9 | H92: 73.512 | I92: 合格 | J92: 合格 | K92: 拟聘用
A93: 90 | B93: 09 | C93: 环市街社区专职工作者A片区 | D93: 李焯均 | E93: 201020102712 | F93: 75.57 | G93: 72.1 | H93: 73.488 | I93: 合格 | J93: 合格 | K93: 拟聘用
A94: 91 | B94: 09 | C94: 环市街社区专职工作者A片区 | D94: 吕淑连 | E94: 201020104606 | F94: 75.28 | G94: 71.8 | H94: 73.192 | I94: 合格 | J94: 合格 | K94: 拟聘用
A95: 92 | B95: 09 | C95: 环市街社区专职工作者A片区 | D95: 何凡略 | E95: 201020104818 | F95: 80.61 | G95: 68.1 | H95: 73.104 | I95: 合格 | J95: 合格 | K95: 拟聘用
A96: 93 | B96: 09 | C96: 环市街社区专职工作者A片区 | D96: 骆纳英 | E96: 201020103222 | F96: 83.7 | G96: 65.6 | H96: 72.84 | I96: 合格 | J96: 合格 | K96: 拟聘用
A97: 94 | B97: 09 | C97: 环市街社区专职工作者A片区 | D97: 吴睿 | E97: 201020103514 | F97: 83.16 | G97: 65.4 | H97: 72.504 | I97: 合格 | J97: 合格 | K97: 拟聘用
A98: 95 | B98: 10 | C98: 环市街社区专职工作者B片区 | D98: 杨绮梅 | E98: 201020100409 | F98: 86.73 | G98: 85.5 | H98: 85.992 | I98: 合格 | J98: 合格 | K98: 拟聘用
A99: 96 | B99: 10 | C99: 环市街社区专职工作者B片区 | D99: 陈艳玉 | E99: 201020104117 | F99: 84.53 | G99: 82.9 | H99: 83.552 | I99: 合格 | J99: 合格 | K99: 拟聘用
A100: 97 | B100: 10 | C100: 环市街社区专职工作者B片区 | D100: 黄诗琪 | E100: 201020100420 | F100: 74.71 | G100: 86.2 | H100: 81.604 | I100: 合格 | J100: 合格 | K100: 拟聘用
A101: 98 | B101: 10 | C101: 环市街社区专职工作者B片区 | D101: 吴天阳 | E101: 201020103830 | F101: 87.05 | G101: 77.8 | H101: 81.5 | I101: 合格 | J101: 合格 | K101: 拟聘用
A102: 99 | B102: 10 | C102: 环市街社区专职工作者B片区 | D102: 毛江林 | E102: 201020100727 | F102: 83.16 | G102: 77.5 | H102: 79.764 | I102: 合格 | J102: 合格 | K102: 拟聘用
A103: 100 | B103: 10 | C103: 环市街社区专职工作者B片区 | D103: 刘梦莎 | E103: 201020104816 | F103: 83.7 | G103: 76.8 | H103: 79.56 | I103: 合格 | J103: 合格 | K103: 拟聘用
A104: 101 | B104: 10 | C104: 环市街社区专职工作者B片区 | D104: 司徒管娣 | E104: 201020102111 | F104: 87.05 | G104: 73.1 | H104: 78.68 | I104: 合格 | J104: 合格 | K104: 拟聘用
A105: 102 | B105: 10 | C105: 环市街社区专职工作者B片区 | D105: 廖懋柱 | E105: 201020104927 | F105: 78.92 | G105: 77.6 | H105: 78.128 | I105: 合格 | J105: 合格 | K105: 拟聘用
A106: 103 | B106: 10 | C106: 环市街社区专职工作者B片区 | D106: 伍世文 | E106: 201020100924 | F106: 84.02 | G106: 73.5 | H106: 77.708 | I106: 合格 | J106: 合格 | K106: 拟聘用
A107: 104 | B107: 10 | C107: 环市街社区专职工作者B片区 | D107: 罗贻擎 | E107: 201020102802 | F107: 84.82 | G107: 72.6 | H107: 77.488 | I107: 合格 | J107: 合格 | K107: 拟聘用
A108: 105 | B108: 10 | C108: 环市街社区专职工作者B片区 | D108: 李敏健 | E108: 201020101903 | F108: 80.32 | G108: 71.1 | H108: 74.788 | I108: 合格 | J108: 合格 | K108: 拟聘用
A109: 106 | B109: 10 | C109: 环市街社区专职工作者B片区 | D109: 莫怡慧 | E109: 201020104729 | F109: 74.39 | G109: 74.9 | H109: 74.696 | I109: 合格 | J109: 合格 | K109: 拟聘用
A110: 107 | B110: 10 | C110: 环市街社区专职工作者B片区 | D110: 韦德发 | E110: 201020101421 | F110: 78.66 | G110: 71.3 | H110: 74.244 | I110: 合格 | J110: 合格 | K110: 拟聘用
A111: 108 | B111: 10 | C111: 环市街社区专职工作者B片区 | D111: 蔡江柏 | E111: 201020102812 | F111: 79.78 | G111: 66.3 | H111: 71.692 | I111: 合格 | J111: 合格 | K111: 拟聘用
A112: 109 | B112: 10 | C112: 环市街社区专职工作者B片区 | D112: 甘丽婵 | E112: 201020102527 | F112: 68.23 | G112: 73.6 | H112: 71.452 | I112: 合格 | J112: 合格 | K112: 拟聘用
A113: 110 | B113: 10 | C113: 环市街社区专职工作者B片区 | D113: 王琪 | E113: 201020100102 | F113: 79.81 | G113: 64.5 | H113: 70.624 | I113: 合格 | J113: 合格 | K113: 拟聘用
A114: 111 | B114: 10 | C114: 环市街社区专职工作者B片区 | D114: 朱金霞 | E114: 201020101724 | F114: 82.52 | G114: 61.7 | H114: 70.028 | I114: 合格 | J114: 合格 | K114: 拟聘用
A115: 112 | B115: 10 | C115: 环市街社区专职工作者B片区 | D115: 饶静英 | E115: 201020103904 | F115: 77.26 | G115: 64.9 | H115: 69.844 | I115: 合格 | J115: 合格 | K115: 拟聘用
A116: 113 | B116: 10 | C116: 环市街社区专职工作者B片区 | D116: 刘鹏进 | E116: 201020103003 | F116: 76.94 | G116: 63.7 | H116: 68.996 | I116: 合格 | J116: 合格 | K116: 拟聘用
A117: 114 | B117: 10 | C117: 环市街社区专职工作者B片区 | D117: 张杰斯 | E117: 201020103605 | F117: 74.74 | G117: 63.5 | H117: 67.996 | I117: 合格 | J117: 合格 | K117: 拟聘用
A118: 115 | B118: 10 | C118: 环市街社区专职工作者B片区 | D118: 冯红玉 | E118: 201020104304 | F118: 73.05 | G118: 64.5 | H118: 67.92 | I118: 合格 | J118: 合格 | K118: 拟聘用
A119: 116 | B119: 10 | C119: 环市街社区专职工作者B片区 | D119: 莫嘉敏 | E119: 201020103622 | F119: 71.07 | G119: 64.7 | H119: 67.248 | I119: 合格 | J119: 合格 | K119: 拟聘用
A120: 117 | B120: 10 | C120: 环市街社区专职工作者B片区 | D120: 黄海鹏 | E120: 201020100513 | F120: 69.86 | G120: 64.8 | H120: 66.824 | I120: 合格 | J120: 合格 | K120: 拟聘用
A121: 118 | B121: 10 | C121: 环市街社区专职工作者B片区 | D121: 赵慧萍 | E121: 201020100616 | F121: 70.18 | G121: 61.6 | H121: 65.032 | I121: 合格 | J121: 合格 | K121: 拟聘用
A122: 119 | B122: 10 | C122: 环市街社区专职工作者B片区 | D122: 邓雅雅 | E122: 201020101408 | F122: 61.76 | G122: 62.9 | H122: 62.444 | I122: 合格 | J122: 合格 | K122: 拟聘用
A123: 120 | B123: 10 | C123: 环市街社区专职工作者B片区 | D123: 林燕如 | E123: 201020103801 | F123: 59.56 | G123: 63.2 | H123: 61.744 | I123: 合格 | J123: 合格 | K123: 拟聘用
A124: 121 | B124: 11 | C124: 环市街社区专职工作者C片区 | D124: 陈颂晖 | E124: 201020102922 | F124: 86.22 | G124: 87 | H124: 86.688 | I124: 合格 | J124: 合格 | K124: 拟聘用
A125: 122 | B125: 11 | C125: 环市街社区专职工作者C片区 | D125: 刘泳华 | E125: 201020104413 | F125: 84.02 | G125: 86.3 | H125: 85.388 | I125: 合格 | J125: 合格 | K125: 拟聘用
A126: 123 | B126: 11 | C126: 环市街社区专职工作者C片区 | D126: 王超华 | E126: 201020105115 | F126: 89.03 | G126: 82.8 | H126: 85.292 | I126: 合格 | J126: 合格 | K126: 拟聘用
A127: 124 | B127: 11 | C127: 环市街社区专职工作者C片区 | D127: 杨嘉乐 | E127: 201020100611 | F127: 90.4 | G127: 81.1 | H127: 84.82 | I127: 合格 | J127: 合格 | K127: 拟聘用
A128: 125 | B128: 11 | C128: 环市街社区专职工作者C片区 | D128: 黎珈希 | E128: 201020101206 | F128: 82.01 | G128: 86.3 | H128: 84.584 | I128: 合格 | J128: 合格 | K128: 拟聘用
A129: 126 | B129: 11 | C129: 环市街社区专职工作者C片区 | D129: 李苑婷 | E129: 201020101911 | F129: 84.53 | G129: 82.8 | H129: 83.492 | I129: 合格 | J129: 合格 | K129: 拟聘用
A130: 127 | B130: 11 | C130: 环市街社区专职工作者C片区 | D130: 黄嘉怡 | E130: 201020103828 | F130: 87.88 | G130: 80.5 | H130: 83.452 | I130: 合格 | J130: 合格 | K130: 拟聘用
A131: 128 | B131: 11 | C131: 环市街社区专职工作者C片区 | D131: 黄译贤 | E131: 201020103208 | F131: 82.3 | G131: 83.4 | H131: 82.96 | I131: 合格 | J131: 合格 | K131: 拟聘用
A132: 129 | B132: 11 | C132: 环市街社区专职工作者C片区 | D132: 朱明朗 | E132: 201020101403 | F132: 88.2 | G132: 75 | H132: 80.28 | I132: 合格 | J132: 合格 | K132: 拟聘用
A133: 130 | B133: 11 | C133: 环市街社区专职工作者C片区 | D133: 吕慧怡 | E133: 201020104807 | F133: 84.24 | G133: 77.4 | H133: 80.136 | I133: 合格 | J133: 合格 | K133: 拟聘用
A134: 131 | B134: 11 | C134: 环市街社区专职工作者C片区 | D134: 李梓良 | E134: 201020104123 | F134: 90.4 | G134: 73.2 | H134: 80.08 | I134: 合格 | J134: 合格 | K134: 拟聘用
A135: 132 | B135: 11 | C135: 环市街社区专职工作者C片区 | D135: 黄筱梅 | E135: 201020103207 | F135: 78.12 | G135: 80.7 | H135: 79.668 | I135: 合格 | J135: 合格 | K135: 拟聘用
A136: 133 | B136: 11 | C136: 环市街社区专职工作者C片区 | D136: 何梓鹏 | E136: 201020101627 | F136: 84.02 | G136: 75.7 | H136: 79.028 | I136: 合格 | J136: 合格 | K136: 拟聘用
A137: 134 | B137: 11 | C137: 环市街社区专职工作者C片区 | D137: 区小玲 | E137: 201020102628 | F137: 71.61 | G137: 82.3 | H137: 78.024 | I137: 合格 | J137: 合格 | K137: 拟聘用
A138: 135 | B138: 11 | C138: 环市街社区专职工作者C片区 | D138: 刘格溢 | E138: 201020105305 | F138: 80.61 | G138: 74.4 | H138: 76.884 | I138: 合格 | J138: 合格 | K138: 拟聘用
A139: 136 | B139: 11 | C139: 环市街社区专职工作者C片区 | D139: 黄银笑 | E139: 201020104521 | F139: 77.26 | G139: 75.2 | H139: 76.024 | I139: 合格 | J139: 合格 | K139: 拟聘用
A140: 137 | B140: 11 | C140: 环市街社区专职工作者C片区 | D140: 陈月霞 | E140: 201020103214 | F140: 74.96 | G140: 76.1 | H140: 75.644 | I140: 合格 | J140: 合格 | K140: 拟聘用
A141: 138 | B141: 11 | C141: 环市街社区专职工作者C片区 | D141: 陈晓程 | E141: 201020102107 | F141: 71.87 | G141: 78.1 | H141: 75.608 | I141: 合格 | J141: 合格 | K141: 拟聘用
A142: 139 | B142: 11 | C142: 环市街社区专职工作者C片区 | D142: 周嘉雯 | E142: 201020100122 | F142: 79.17 | G142: 72.3 | H142: 75.048 | I142: 合格 | J142: 合格 | K142: 拟聘用
A143: 140 | B143: 11 | C143: 环市街社区专职工作者C片区 | D143: 仇妙欣 | E143: 201020101912 | F143: 78.63 | G143: 72.4 | H143: 74.892 | I143: 合格 | J143: 合格 | K143: 拟聘用
A144: 141 | B144: 11 | C144: 环市街社区专职工作者C片区 | D144: 张玉光 | E144: 201020100603 | F144: 76.97 | G144: 72.3 | H144: 74.168 | I144: 合格 | J144: 合格 | K144: 拟聘用
A145: 142 | B145: 11 | C145: 环市街社区专职工作者C片区 | D145: 严银爱 | E145: 201020104529 | F145: 74.42 | G145: 73.9 | H145: 74.108 | I145: 合格 | J145: 合格 | K145: 拟聘用
A146: 143 | B146: 11 | C146: 环市街社区专职工作者C片区 | D146: 覃昌华 | E146: 201020104501 | F146: 74.42 | G146: 73.2 | H146: 73.688 | I146: 合格 | J146: 合格 | K146: 拟聘用
A147: 144 | B147: 11 | C147: 环市街社区专职工作者C片区 | D147: 黄艳莹 | E147: 201020102103 | F147: 75.25 | G147: 72 | H147: 73.3 | I147: 合格 | J147: 合格 | K147: 拟聘用
A148: 145 | B148: 11 | C148: 环市街社区专职工作者C片区 | D148: 翁紫莹 | E148: 201020102305 | F148: 73.56 | G148: 72.9 | H148: 73.164 | I148: 合格 | J148: 合格 | K148: 拟聘用
A149: 146 | B149: 11 | C149: 环市街社区专职工作者C片区 | D149: 赵朗荣 | E149: 201020103101 | F149: 67.69 | G149: 76.7 | H149: 73.096 | I149: 合格 | J149: 合格 | K149: 拟聘用
A150: 147 | B150: 11 | C150: 环市街社区专职工作者C片区 | D150: 罗彩红 | E150: 201020104714 | F150: 81.15 | G150: 66.3 | H150: 72.24 | I150: 合格 | J150: 合格 | K150: 拟聘用
A151: 148 | B151: 11 | C151: 环市街社区专职工作者C片区 | D151: 赵晓琳 | E151: 201020101101 | F151: 76.94 | G151: 68 | H151: 71.576 | I151: 合格 | J151: 合格 | K151: 拟聘用
A152: 149 | B152: 12 | C152: 环市街社区专职工作者D片区 | D152: 冯健辉 | E152: 201020104623 | F152: 92.41 | G152: 80.7 | H152: 85.384 | I152: 合格 | J152: 合格 | K152: 拟聘用
A153: 150 | B153: 12 | C153: 环市街社区专职工作者D片区 | D153: 黄靖宏 | E153: 201020101607 | F153: 92.41 | G153: 76.6 | H153: 82.924 | I153: 合格 | J153: 合格 | K153: 拟聘用
A154: 151 | B154: 12 | C154: 环市街社区专职工作者D片区 | D154: 尹素媚 | E154: 201020101527 | F154: 88.2 | G154: 79.4 | H154: 82.92 | I154: 合格 | J154: 合格 | K154: 拟聘用
A155: 152 | B155: 12 | C155: 环市街社区专职工作者D片区 | D155: 陈绍基 | E155: 201020103515 | F155: 81.47 | G155: 80.2 | H155: 80.708 | I155: 合格 | J155: 合格 | K155: 拟聘用
A156: 153 | B156: 12 | C156: 环市街社区专职工作者D片区 | D156: 张锦城 | E156: 201020100914 | F156: 82.84 | G156: 79.1 | H156: 80.596 | I156: 合格 | J156: 合格 | K156: 拟聘用
A157: 154 | B157: 12 | C157: 环市街社区专职工作者D片区 | D157: 陈颖琳 | E157: 201020103827 | F157: 83.7 | G157: 77.7 | H157: 80.1 | I157: 合格 | J157: 合格 | K157: 拟聘用
A158: 155 | B158: 12 | C158: 环市街社区专职工作者D片区 | D158: 符樱兰 | E158: 201020102230 | F158: 76.11 | G158: 82.7 | H158: 80.064 | I158: 合格 | J158: 合格 | K158: 拟聘用
A159: 156 | B159: 12 | C159: 环市街社区专职工作者D片区 | D159: 林燕华 | E159: 201020102806 | F159: 87.05 | G159: 75.4 | H159: 80.06 | I159: 合格 | J159: 合格 | K159: 拟聘用
A160: 157 | B160: 12 | C160: 环市街社区专职工作者D片区 | D160: 冯楚婷 | E160: 201020103912 | F160: 88.2 | G160: 74 | H160: 79.68 | I160: 合格 | J160: 合格 | K160: 拟聘用
A161: 158 | B161: 12 | C161: 环市街社区专职工作者D片区 | D161: 何懿 | E161: 201020104015 | F161: 89.03 | G161: 70.5 | H161: 77.912 | I161: 合格 | J161: 合格 | K161: 拟聘用
A162: 159 | B162: 12 | C162: 环市街社区专职工作者D片区 | D162: 宋长森 | E162: 201020103024 | F162: 73.84 | G162: 80.4 | H162: 77.776 | I162: 合格 | J162: 合格 | K162: 拟聘用
A163: 160 | B163: 12 | C163: 环市街社区专职工作者D片区 | D163: 连莉莉 | E163: 201020100402 | F163: 83.13 | G163: 72.9 | H163: 76.992 | I163: 合格 | J163: 合格 | K163: 拟聘用
A164: 161 | B164: 12 | C164: 环市街社区专职工作者D片区 | D164: 王娜 | E164: 201020101825 | F164: 87.37 | G164: 69.6 | H164: 76.708 | I164: 合格 | J164: 合格 | K164: 拟聘用
A165: 162 | B165: 12 | C165: 环市街社区专职工作者D片区 | D165: 吕慧琼 | E165: 201020102229 | F165: 72.95 | G165: 77.6 | H165: 75.74 | I165: 合格 | J165: 合格 | K165: 拟聘用
A166: 163 | B166: 12 | C166: 环市街社区专职工作者D片区 | D166: 张宝琴 | E166: 201020101106 | F166: 69.89 | G166: 79.6 | H166: 75.716 | I166: 合格 | J166: 合格 | K166: 拟聘用
A167: 164 | B167: 12 | C167: 环市街社区专职工作者D片区 | D167: 陈凯珊 | E167: 201020101728 | F167: 78.02 | G167: 73.9 | H167: 75.548 | I167: 合格 | J167: 合格 | K167: 拟聘用
A168: 165 | B168: 12 | C168: 环市街社区专职工作者D片区 | D168: 欧阳兆臻 | E168: 201020102122 | F168: 79.78 | G168: 72.7 | H168: 75.532 | I168: 合格 | J168: 合格 | K168: 拟聘用
A169: 166 | B169: 12 | C169: 环市街社区专职工作者D片区 | D169: 温婉敏 | E169: 201020102705 | F169: 72.19 | G169: 76.8 | H169: 74.956 | I169: 合格 | J169: 合格 | K169: 拟聘用
A170: 167 | B170: 12 | C170: 环市街社区专职工作者D片区 | D170: 胡铭慧 | E170: 201020103714 | F170: 83.7 | G170: 68.7 | H170: 74.7 | I170: 合格 | J170: 合格 | K170: 拟聘用
A171: 168 | B171: 12 | C171: 环市街社区专职工作者D片区 | D171: 唐秋燕 | E171: 201020101320 | F171: 80.32 | G171: 70.7 | H171: 74.548 | I171: 合格 | J171: 合格 | K171: 拟聘用
A172: 169 | B172: 12 | C172: 环市街社区专职工作者D片区 | D172: 邓务贞 | E172: 201020103027 | F172: 65.97 | G172: 80.2 | H172: 74.508 | I172: 合格 | J172: 合格 | K172: 拟聘用
A173: 170 | B173: 12 | C173: 环市街社区专职工作者D片区 | D173: 梁钰佩 | E173: 201020105122 | F173: 77.26 | G173: 72.2 | H173: 74.224 | I173: 合格 | J173: 合格 | K173: 拟聘用
A174: 171 | B174: 12 | C174: 环市街社区专职工作者D片区 | D174: 杨婉平 | E174: 201020103506 | F174: 76.94 | G174: 72 | H174: 73.976 | I174: 合格 | J174: 合格 | K174: 拟聘用
A175: 172 | B175: 12 | C175: 环市街社区专职工作者D片区 | D175: 谭静雯 | E175: 201020100416 | F175: 72.22 | G175: 73.6 | H175: 73.048 | I175: 合格 | J175: 合格 | K175: 拟聘用
A176: 173 | B176: 12 | C176: 环市街社区专职工作者D片区 | D176: 郑金花 | E176: 201020103315 | F176: 62.62 | G176: 79.6 | H176: 72.808 | I176: 合格 | J176: 合格 | K176: 拟聘用
A177: 174 | B177: 12 | C177: 环市街社区专职工作者D片区 | D177: 陈小萍 | E177: 201020100319 | F177: 76.08 | G177: 69.8 | H177: 72.312 | I177: 合格 | J177: 合格 | K177: 拟聘用
A178: 175 | B178: 12 | C178: 环市街社区专职工作者D片区 | D178: 林昌锴 | E178: 201020104430 | F178: 69.89 | G178: 73.2 | H178: 71.876 | I178: 合格 | J178: 合格 | K178: 拟聘用
A179: 176 | B179: 12 | C179: 环市街社区专职工作者D片区 | D179: 周丽珊 | E179: 201020101917 | F179: 68.74 | G179: 73.8 | H179: 71.776 | I179: 合格 | J179: 合格 | K179: 拟聘用
A180: 177 | B180: 12 | C180: 环市街社区专职工作者D片区 | D180: 奚扬扬 | E180: 201020103529 | F180: 73.27 | G180: 70.6 | H180: 71.668 | I180: 合格 | J180: 合格 | K180: 拟聘用
A181: 178 | B181: 12 | C181: 环市街社区专职工作者D片区 | D181: 陈仲爱 | E181: 201020102813 | F181: 67.95 | G181: 73.8 | H181: 71.46 | I181: 合格 | J181: 合格 | K181: 拟聘用
A182: 179 | B182: 13 | C182: 环市街社区专职工作者E片区 | D182: 许少玲 | E182: 201020100414 | F182: 90.43 | G182: 89.1 | H182: 89.632 | I182: 合格 | J182: 合格 | K182: 拟聘用
A183: 180 | B183: 13 | C183: 环市街社区专职工作者E片区 | D183: 黄艳桃 | E183: 201020101414 | F183: 85.65 | G183: 83.6 | H183: 84.42 | I183: 合格 | J183: 合格 | K183: 拟聘用
A184: 181 | B184: 13 | C184: 环市街社区专职工作者E片区 | D184: 李国鹏 | E184: 201020101226 | F184: 92.95 | G184: 75.7 | H184: 82.6 | I184: 合格 | J184: 合格 | K184: 拟聘用
A185: 182 | B185: 13 | C185: 环市街社区专职工作者E片区 | D185: 朱国利 | E185: 201020100917 | F185: 73.88 | G185: 85.1 | H185: 80.612 | I185: 合格 | J185: 合格 | K185: 拟聘用
A186: 183 | B186: 13 | C186: 环市街社区专职工作者E片区 | D186: 戴剑华 | E186: 201020103721 | F186: 78.63 | G186: 79.1 | H186: 78.912 | I186: 合格 | J186: 合格 | K186: 拟聘用
A187: 184 | B187: 13 | C187: 环市街社区专职工作者E片区 | D187: 谢瑶 | E187: 201020104219 | F187: 81.15 | G187: 75.1 | H187: 77.52 | I187: 合格 | J187: 合格 | K187: 拟聘用
A188: 185 | B188: 13 | C188: 环市街社区专职工作者E片区 | D188: 刘雨桐 | E188: 201020102927 | F188: 80.03 | G188: 72.9 | H188: 75.752 | I188: 合格 | J188: 合格 | K188: 拟聘用
A189: 186 | B189: 13 | C189: 环市街社区专职工作者E片区 | D189: 陈艳薇 | E189: 201020104716 | F189: 63.16 | G189: 81.6 | H189: 74.224 | I189: 合格 | J189: 合格 | K189: 拟聘用
A190: 187 | B190: 13 | C190: 环市街社区专职工作者E片区 | D190: 潘君仪 | E190: 201020101023 | F190: 78.31 | G190: 70.9 | H190: 73.864 | I190: 合格 | J190: 合格 | K190: 拟聘用
A191: 188 | B191: 13 | C191: 环市街社区专职工作者E片区 | D191: 刘志勇 | E191: 201020103925 | F191: 65.9 | G191: 75 | H191: 71.36 | I191: 合格 | J191: 合格 | K191: 拟聘用
A192: 189 | B192: 13 | C192: 环市街社区专职工作者E片区 | D192: 梁清怡 | E192: 201020102524 | F192: 74.39 | G192: 66.9 | H192: 69.896 | I192: 合格 | J192: 合格 | K192: 拟聘用
A193: 190 | B193: 13 | C193: 环市街社区专职工作者E片区 | D193: 施桂滨 | E193: 201020103011 | F193: 67.69 | G193: 71.1 | H193: 69.736 | I193: 合格 | J193: 合格 | K193: 拟聘用
A194: 191 | B194: 13 | C194: 环市街社区专职工作者E片区 | D194: 区嘉诚 | E194: 201020101017 | F194: 67.98 | G194: 61.9 | H194: 64.332 | I194: 合格 | J194: 合格 | K194: 拟聘用
A195: 192 | B195: 14 | C195: 环市街社区专职工作者F片区 | D195: 林春凤 | E195: 201020101704 | F195: 85.39 | G195: 82.7 | H195: 83.776 | I195: 合格 | J195: 合格 | K195: 拟聘用
A196: 193 | B196: 14 | C196: 环市街社区专职工作者F片区 | D196: 李嘉琦 | E196: 201020100629 | F196: 86.22 | G196: 76.8 | H196: 80.568 | I196: 合格 | J196: 合格 | K196: 拟聘用
A197: 194 | B197: 14 | C197: 环市街社区专职工作者F片区 | D197: 余雅玲 | E197: 201020102719 | F197: 85.36 | G197: 75.8 | H197: 79.624 | I197: 合格 | J197: 合格 | K197: 拟聘用
A198: 195 | B198: 14 | C198: 环市街社区专职工作者F片区 | D198: 吕婉莹 | E198: 201020103819 | F198: 78.34 | G198: 77.9 | H198: 78.076 | I198: 合格 | J198: 合格 | K198: 拟聘用
A199: 196 | B199: 14 | C199: 环市街社区专职工作者F片区 | D199: 梁婵娟 | E199: 201020103206 | F199: 78.6 | G199: 77.6 | H199: 78 | I199: 合格 | J199: 合格 | K199: 拟聘用
A200: 197 | B200: 14 | C200: 环市街社区专职工作者F片区 | D200: 区静韵 | E200: 201020100920 | F200: 69.03 | G200: 83.5 | H200: 77.712 | I200: 合格 | J200: 合格 | K200: 拟聘用
... 126 more rows
